bitfinex/quotes_BTCUSD_20250902
["timestamp","ask_amount","ask_price","bid_price","bid_amount"]
[1756823263487,0.04375201,111520.0,111510.0,0.18453611]
[1756823263724,0.01678854,111520.0,111510.0,0.18453611]
[1756823263937,0.2062885,111530.0,111520.0,0.17934002]
[1756823264142,0.04374686,111530.0,111520.0,0.18452002]
[1756823264549,0.2230708,111530.0,111520.0,0.18251002]
[1756823264754,0.2230708,111530.0,111520.0,0.00317]
[1756823264958,0.2270408,111530.0,111510.0,0.17935597]
[1756823265168,0.17934002,111520.0,111510.0,0.18252597]
[1756823265377,0.00197,111520.0,111510.0,0.18553597]
[1756823265573,0.18131002,111520.0,111510.0,0.18553597]
[1756823265784,0.18131002,111520.0,111510.0,0.18035611]
[1756823265987,0.18131002,111520.0,111500.0,0.19151079]
[1756823266353,0.18131002,111520.0,111510.0,0.17935611]
[1756823266571,0.17935611,111510.0,111500.0,0.00317]
[1756823266794,0.17935611,111510.0,111490.0,0.21098512]
[1756823267009,0.17937219,111500.0,111490.0,0.21415512]
[1756823267221,0.20632229,111510.0,111500.0,0.001]
[1756823267711,0.64195828,111510.0,111500.0,0.001]
[1756823268392,0.64195828,111510.0,111500.0,0.002]
[1756823268623,0.64020828,111510.0,111500.0,0.001]
[1756823270218,0.64020828,111510.0,111500.0,0.003]
[1756823270548,0.64020828,111510.0,111500.0,0.001]
[1756823271170,0.70958828,111510.0,111500.0,0.001]
[1756823271629,0.70958828,111510.0,111470.0,0.19156097]
[1756823271630,0.17940437,111480.0,111470.0,0.19156097]
[1756823271841,0.17940437,111480.0,111470.0,0.18464687]
[1756823272272,0.17939297,111490.0,111470.0,0.18464687]
[1756823272505,0.17939297,111490.0,111480.0,0.18257437]
[1756823272705,0.17939297,111490.0,111480.0,0.18458437]
[1756823273354,0.17939297,111490.0,111480.0,0.00518]
[1756823273571,0.18136297,111490.0,111480.0,0.00518]
[1756823273783,0.17939297,111490.0,111480.0,0.18458437]
[1756823274226,0.17938828,111490.0,111480.0,0.18458437]
[1756823274436,0.17938828,111490.0,111480.0,0.00518]
[1756823274642,0.20832892,111490.0,111470.0,0.18263687]
[1756823274850,0.17940437,111480.0,111470.0,0.18263687]
[1756823275081,0.17940437,111480.0,111470.0,0.18464687]
[1756823275297,0.18137437,111480.0,111470.0,4.692e-05]
[1756823275499,0.18137437,111480.0,111470.0,0.18147739]
[1756823275710,0.18137437,111480.0,111470.0,0.00205692]
[1756823275913,0.22262422,111490.0,111470.0,0.18464739]
[1756823276110,0.22262422,111490.0,111480.0,0.00317]
[1756823276682,0.02697064,111490.0,111480.0,0.18458437]
[1756823276889,0.20635892,111490.0,111480.0,0.18458437]
[1756823277090,0.20635892,111490.0,111480.0,0.00518]
[1756823277520,0.22423849,111490.0,111480.0,0.16084]
[1756823277716,0.22423849,111490.0,111480.0,0.16284]
[1756823278755,0.22423849,111490.0,111480.0,0.002]
[1756823278944,0.22423849,111490.0,111480.0,0.1608]
[1756823279150,0.22623849,111490.0,111480.0,0.1608]
[1756823279574,0.20835892,111490.0,111480.0,0.34538437]
[1756823279792,0.02897064,111490.0,111480.0,0.34638437]
[1756823280001,0.20835892,111490.0,111480.0,0.34638437]
[1756823280440,0.20835892,111490.0,111480.0,0.34538437]
[1756823280866,0.20635892,111490.0,111480.0,0.34538437]
[1756823281324,0.20635892,111490.0,111480.0,0.18458437]
[1756823281507,0.02697064,111490.0,111480.0,0.16598]
[1756823281734,0.2802399,111510.0,111490.0,0.1793744]
[1756823281735,0.62748768,111510.0,111490.0,0.1793744]
[1756823281977,0.02696795,111500.0,111490.0,0.1793744]
[1756823282209,0.17935637,111510.0,111500.0,0.17937219]
[1756823282433,0.18830702,111520.0,111510.0,0.17935611]
[1756823282434,0.17934002,111520.0,111510.0,0.17935611]
[1756823282687,0.03615493,111520.0,111510.0,0.34533611]
[1756823282902,0.04376935,111520.0,111510.0,0.34533611]
[1756823283124,0.2063039,111520.0,111510.0,0.34533611]
[1756823283359,0.2063039,111520.0,111510.0,0.4372521]
[1756823283360,0.02696388,111520.0,111510.0,0.4372521]
[1756823283582,0.00144917,111550.0,111540.0,0.17930787]
[1756823283800,0.24384136,111550.0,111540.0,0.23506]
[1756823284021,0.20895399,111550.0,111540.0,0.41436787]
[1756823284262,0.20895399,111550.0,111540.0,0.23506]
[1756823284446,0.21092399,111550.0,111540.0,0.22993]
[1756823284654,0.21092399,111550.0,111540.0,0.06696]
[1756823284868,0.21722445,111550.0,111540.0,0.22792]
[1756823285104,0.22022445,111550.0,111540.0,0.06696]
[1756823285322,0.17932038,111540.0,111520.0,0.25146891]
[1756823285534,0.17932394,111530.0,111520.0,0.25146965]
[1756823285748,0.17932394,111530.0,111520.0,0.25347522]
[1756823285961,0.17932394,111530.0,111520.0,0.25348002]
[1756823286186,0.17932394,111530.0,111520.0,0.07414]
[1756823286438,0.18129394,111530.0,111520.0,0.22988]
[1756823286662,0.18129394,111530.0,111520.0,0.06896]
[1756823286878,0.21672697,111530.0,111520.0,0.22992]
[1756823287323,0.21672697,111530.0,111520.0,0.41026002]
[1756823287538,0.21475697,111530.0,111520.0,0.2361]
[1756823287798,0.19738189,111530.0,111520.0,0.07096]
[1756823288012,0.216728,111530.0,111520.0,0.23192]
[1756823288455,0.216728,111530.0,111520.0,0.07096]
[1756823288660,0.216728,111530.0,111520.0,0.23084]
[1756823288869,0.30864399,111530.0,111520.0,0.2308]
[1756823289084,0.33560731,111530.0,111520.0,0.41123002]
[1756823289309,0.33363731,111530.0,111520.0,0.23498]
[1756823289521,0.3142912,111530.0,111520.0,0.23498]
[1756823289736,0.3356156,111530.0,111520.0,0.23498]
[1756823289944,0.3356156,111530.0,111520.0,0.2298]
[1756823290156,0.3356156,111530.0,111520.0,0.06896]
[1756823290369,0.3356156,111530.0,111520.0,0.2298]
[1756823290585,0.3336356,111530.0,111520.0,0.41432002]
[1756823290795,0.33363531,111530.0,111520.0,0.23498]
[1756823291016,0.33565531,111530.0,111520.0,0.23189]
[1756823291248,0.17934002,111520.0,111500.0,0.46702198]
[1756823291492,0.18137611,111510.0,111500.0,0.28456]
[1756823291742,0.18137611,111510.0,111500.0,0.44532]
[1756823292218,0.27125601,111520.0,111500.0,0.62987219]
[1756823292445,0.17935611,111510.0,111500.0,0.62987219]
[1756823292667,0.02696563,111520.0,111510.0,0.18244611]
[1756823292891,0.20630565,111520.0,111510.0,0.18453611]
[1756823293105,0.20630565,111520.0,111510.0,0.00518]
[1756823293324,0.17935611,111510.0,111500.0,0.46802219]
[1756823293555,0.18137611,111510.0,111500.0,0.44632]
[1756823293766,0.18137611,111510.0,111500.0,0.62669219]
[1756823293976,0.17935611,111510.0,111500.0,0.63187219]
[1756823294235,0.17935611,111510.0,111500.0,0.63087219]
[1756823294456,0.17935611,111510.0,111500.0,0.4515]
[1756823294691,0.18137611,111510.0,111500.0,0.44632]
[1756823295139,0.18137611,111510.0,111500.0,0.23072]
[1756823295581,0.18137611,111510.0,111500.0,0.23172]
[1756823295810,0.18137611,111510.0,111500.0,0.41318219]
[1756823296029,0.18137611,111510.0,111500.0,0.06996]
[1756823296263,0.2732921,111510.0,111500.0,0.06996]
[1756823296495,0.63439035,111510.0,111500.0,0.23172]
[1756823296731,0.63267035,111510.0,111500.0,0.23172]
[1756823298994,0.63065035,111510.0,111500.0,0.2369]
[1756823299673,0.63065035,111510.0,111500.0,0.41627219]
[1756823299887,0.17935611,111510.0,111500.0,0.41627219]
[1756823300183,0.02696563,111520.0,111510.0,0.17935611]
[1756823300512,0.19542068,111530.0,111520.0,0.17934002]
[1756823300778,0.17934002,111520.0,111510.0,0.18244611]
[1756823301050,0.19872141,111520.0,111510.0,0.36183611]
[1756823301326,0.02696294,111530.0,111520.0,0.17934002]
[1756823301655,0.01938016,111530.0,111520.0,0.01863]
[1756823301896,0.2007041,111530.0,111520.0,0.20106002]
[1756823302107,0.1987041,111530.0,111520.0,0.20106002]
[1756823302545,0.01938016,111530.0,111520.0,0.20106002]
[1756823302771,0.05108742,111540.0,111530.0,0.17932394]
[1756823302772,0.02696041,111540.0,111530.0,0.17932394]
[1756823302982,0.02792669,111540.0,111530.0,0.42767394]
[1756823303195,0.02792669,111540.0,111530.0,0.43076394]
[1756823303423,0.20723456,111540.0,111530.0,0.43076394]
[1756823303663,0.01951732,111540.0,111530.0,0.43076394]
[1756823304336,0.19882519,111540.0,111530.0,0.27000394]
[1756823304552,0.19882519,111540.0,111530.0,0.09068]
[1756823304766,0.20084519,111540.0,111530.0,0.24726]
[1756823305218,0.20084519,111540.0,111530.0,0.24935]
[1756823305445,0.20084519,111540.0,111530.0,0.41522394]
[1756823305446,0.02791831,111540.0,111530.0,0.41522394]
[1756823305663,0.19982519,111540.0,111530.0,0.43174572]
[1756823305859,0.19882519,111540.0,111530.0,0.09166178]
[1756823306083,0.20084519,111540.0,111530.0,0.24724178]
[1756823306299,0.01951732,111540.0,111530.0,0.42865572]
[1756823306511,0.01951732,111540.0,111530.0,0.43174572]
[1756823307103,0.01951732,111540.0,111530.0,1.09057182]
[1756823307104,0.00014075,111540.0,111530.0,1.09057182]
[1756823307424,0.00014075,111540.0,111530.0,1.07405004]
[1756823307609,0.17944862,111540.0,111530.0,0.25241394]
[1756823307822,0.20078031,111540.0,111530.0,0.25241394]
[1756823308049,0.20078031,111540.0,111530.0,0.08647394]
[1756823308264,0.20078031,111540.0,111530.0,0.24723194]
[1756823308498,0.20078031,111540.0,111530.0,0.24823194]
[1756823308706,0.20078031,111540.0,111530.0,0.07096]
[1756823308945,0.20078031,111540.0,111530.0,0.23172]
[1756823310060,0.20078031,111540.0,111530.0,0.07296]
[1756823310272,0.20078031,111540.0,111530.0,0.41509394]
[1756823310490,0.19880031,111540.0,111530.0,0.41818394]
[1756823310701,0.01949244,111540.0,111530.0,0.43269655]
[1756823311119,0.00014075,111540.0,111530.0,1.09052265]
[1756823311575,0.00014075,111540.0,111530.0,1.09152265]
[1756823311832,0.00014075,111540.0,111530.0,1.20437746]
[1756823312061,0.00014075,111540.0,111530.0,1.54437746]
[1756823312278,0.00014075,111540.0,111530.0,1.94337746]
[1756823312494,0.00014075,111540.0,111530.0,1.94437746]
[1756823312719,0.00014075,111540.0,111530.0,1.94337746]
[1756823313205,0.00014075,111540.0,111530.0,1.94537746]
[1756823313642,0.00014075,111540.0,111530.0,1.94437746]
[1756823314077,0.00014075,111540.0,111530.0,2.01900746]
[1756823314312,1e-08,111550.0,111540.0,0.17930787]
[1756823314527,1e-08,111550.0,111540.0,1.40750139]
[1756823314753,1e-08,111550.0,111540.0,0.82648529]
[1756823315212,1e-08,111550.0,111540.0,1.22648529]
[1756823315632,1e-08,111550.0,111540.0,1.23148529]
[1756823316075,0.0002,111580.0,111570.0,0.34]
[1756823316296,0.0002,111580.0,111570.0,1.73163204]
[1756823316297,0.00034064,111580.0,111570.0,1.73163204]
[1756823316516,0.00034064,111580.0,111570.0,1.64707086]
[1756823316728,0.00034064,111580.0,111570.0,2.20775086]
[1756823317205,1e-08,111580.0,111570.0,2.20775086]
[1756823317425,1e-08,111590.0,111580.0,0.25018241]
[1756823317639,1e-08,111590.0,111580.0,1.0204848]
[1756823317878,0.0140263,111590.0,111580.0,1.06280333]
[1756823318088,1e-08,111590.0,111580.0,1.46280333]
[1756823318524,1e-08,111590.0,111580.0,1.62347242]
[1756823318773,1e-08,111590.0,111580.0,1.60702543]
[1756823318994,1e-08,111590.0,111580.0,1.45034543]
[1756823319238,1e-08,111590.0,111580.0,1.61098543]
[1756823319663,1e-08,111590.0,111580.0,1.40034543]
[1756823319878,1e-08,111590.0,111580.0,1.56098543]
[1756823320499,1e-08,111590.0,111580.0,1.40534543]
[1756823320925,1e-08,111590.0,111580.0,1.90598543]
[1756823321142,1e-08,111590.0,111580.0,1.89698543]
[1756823321326,1e-08,111590.0,111580.0,1.89898543]
[1756823321529,1e-08,111590.0,111580.0,1.90298543]
[1756823321752,1e-08,111590.0,111580.0,1.74034543]
[1756823321963,1e-08,111590.0,111580.0,1.90098543]
[1756823322176,1e-08,111590.0,111580.0,1.90298543]
[1756823322957,1e-08,111590.0,111580.0,1.93204661]
[1756823323157,1e-08,111590.0,111580.0,2.00657707]
[1756823323384,1e-08,111590.0,111580.0,2.02300148]
[1756823325305,1e-08,111590.0,111580.0,1.36417538]
[1756823325589,1e-08,111590.0,111580.0,2.02300148]
[1756823327167,0.0002,111610.0,111600.0,0.85897638]
[1756823327377,0.0002,111610.0,111600.0,1.18041237]
[1756823327541,0.0002,111610.0,111600.0,1.18553237]
[1756823327755,0.0002,111610.0,111600.0,1.58553237]
[1756823328556,0.0002,111610.0,111600.0,0.92670627]
[1756823328935,0.0002,111610.0,111600.0,1.58553237]
[1756823329357,0.0002,111610.0,111600.0,0.92670627]
[1756823329565,0.0002,111610.0,111600.0,1.58753237]
[1756823330417,0.00225,111610.0,111600.0,1.59879619]
[1756823330645,0.00225,111610.0,111600.0,0.93997009]
[1756823330864,0.00225,111610.0,111600.0,1.59879619]
[1756823331074,0.0002,111610.0,111600.0,1.60391619]
[1756823331911,0.0002,111610.0,111600.0,1.60791619]
[1756823335187,0.0002,111610.0,111600.0,0.94909009]
[1756823335403,0.0002,111610.0,111600.0,1.60791619]
[1756823335622,0.0002,111610.0,111600.0,1.79280875]
[1756823337261,0.0002,111630.0,111620.0,0.54011817]
[1756823337474,0.00034064,111630.0,111620.0,1.44619731]
[1756823337681,0.00034064,111630.0,111620.0,1.45131731]
[1756823337890,0.00034064,111630.0,111620.0,1.85131731]
[1756823338684,0.00034064,111630.0,111620.0,1.69279731]
[1756823338897,0.00034064,111630.0,111620.0,1.85331731]
[1756823339086,0.00034064,111630.0,111620.0,1.83689349]
[1756823339289,0.00034064,111630.0,111620.0,1.40543681]
[1756823339290,0.00232064,111630.0,111620.0,1.40543681]
[1756823339709,0.49330028,111640.0,111630.0,0.1791633]
[1756823339907,0.48253423,111640.0,111630.0,0.44869326]
[1756823340108,0.73210148,111640.0,111630.0,0.42500912]
[1756823340319,0.73210148,111640.0,111630.0,0.08532582]
[1756823340521,0.8509538,111640.0,111630.0,0.01644582]
[1756823340724,0.8509538,111640.0,111630.0,0.17692582]
[1756823340725,1.1909538,111640.0,111630.0,0.17692582]
[1756823341131,1.19723311,111640.0,111630.0,0.17692582]
[1756823341330,1.19723311,111640.0,111630.0,0.16048]
[1756823342176,0.1791633,111630.0,111620.0,0.003]
[1756823342398,0.2495833,111630.0,111620.0,0.33965935]
[1756823342819,0.2495833,111630.0,111620.0,0.16048]
[1756823343711,1.03582517,111640.0,111620.0,0.00199]
[1756823343922,0.48706156,111640.0,111630.0,0.62470677]
[1756823344138,0.48706156,111640.0,111630.0,0.63445572]
[1756823344139,0.48078423,111640.0,111630.0,0.63445572]
[1756823344347,0.48078423,111640.0,111630.0,0.21259639]
[1756823344581,0.48078423,111640.0,111630.0,0.18891225]
[1756823344809,0.48078423,111640.0,111630.0,0.61077158]
[1756823345038,0.48078423,111640.0,111630.0,0.63957572]
[1756823345260,0.48078423,111640.0,111630.0,0.63233254]
[1756823345688,0.48078423,111640.0,111630.0,0.75912254]
[1756823345953,0.48078423,111640.0,111630.0,0.38397107]
[1756823346181,0.48078423,111640.0,111630.0,0.38697107]
[1756823346415,0.48078423,111640.0,111630.0,0.77722239]
[1756823347086,0.48078423,111640.0,111630.0,0.35536306]
[1756823347344,0.48078423,111640.0,111630.0,0.7384384]
[1756823347520,0.48078423,111640.0,111630.0,0.71849958]
[1756823347959,0.48078423,111640.0,111630.0,0.73314999]
[1756823348169,0.48078423,111640.0,111630.0,1.58299658]
[1756823348389,0.48078423,111640.0,111630.0,1.57787658]
[1756823348615,0.48078423,111640.0,111630.0,1.48592564]
[1756823349035,0.48078423,111640.0,111630.0,1.58296163]
[1756823349683,0.48078423,111640.0,111630.0,2.36575978]
[1756823349906,0.47103528,111640.0,111630.0,2.38944392]
[1756823350536,0.06172032,111640.0,111630.0,2.38944392]
[1756823351231,1e-08,111640.0,111630.0,2.38944392]
[1756823351436,0.35407498,111690.0,111670.0,0.17909122]
[1756823351641,0.36903596,111690.0,111680.0,0.16044]
[1756823351847,0.36950487,111690.0,111680.0,0.17684601]
[1756823352684,0.36950487,111690.0,111680.0,0.3559291]
[1756823352862,0.36055152,111690.0,111680.0,0.17684601]
[1756823353092,0.16652257,111690.0,111680.0,0.3559291]
[1756823353497,0.34858963,111690.0,111680.0,0.17684601]
[1756823353717,0.3605403,111690.0,111680.0,0.01640601]
[1756823353952,0.37455755,111690.0,111680.0,0.01640601]
[1756823354369,0.37455755,111690.0,111680.0,0.3559291]
[1756823354575,0.37755755,111690.0,111680.0,0.3559291]
[1756823354792,0.36260688,111690.0,111680.0,0.3559291]
[1756823355276,0.18353982,111690.0,111680.0,0.3611091]
[1756823355489,0.18353982,111690.0,111680.0,0.3559291]
[1756823355704,0.36260688,111690.0,111680.0,0.23673874]
[1756823355910,0.36884104,111690.0,111680.0,0.23673874]
[1756823356132,0.38361818,111690.0,111680.0,0.17684601]
[1756823356340,0.38361818,111690.0,111680.0,0.17680601]
[1756823356546,0.38061818,111690.0,111680.0,0.17780601]
[1756823357184,0.38261818,111690.0,111680.0,0.3568891]
[1756823357655,0.18877398,111690.0,111680.0,0.3568891]
[1756823358496,0.18877398,111690.0,111680.0,0.3620691]
[1756823358708,0.18877398,111690.0,111680.0,0.3599391]
[1756823358956,0.18877398,111690.0,111680.0,0.78392843]
[1756823359176,0.17475673,111690.0,111680.0,0.78392843]
[1756823359385,0.17475565,111690.0,111680.0,0.78382611]
[1756823359839,0.17275565,111690.0,111680.0,0.8757421]
[1756823360055,0.17275565,111690.0,111680.0,0.45288277]
[1756823360264,0.17375565,111690.0,111680.0,0.87473196]
[1756823360469,0.17375565,111690.0,111680.0,0.43657908]
[1756823360606,0.17375565,111690.0,111680.0,0.47614663]
[1756823360820,0.17375565,111690.0,111680.0,0.31574663]
[1756823360998,0.17375565,111690.0,111680.0,0.21865064]
[1756823361210,0.17375565,111690.0,111680.0,0.37905064]
[1756823361611,0.17375565,111690.0,111680.0,0.38105064]
[1756823361813,0.17375565,111690.0,111680.0,0.38623064]
[1756823362633,0.36683891,111690.0,111680.0,0.20192755]
[1756823362869,0.36683891,111690.0,111680.0,0.38101064]
[1756823363072,0.18777185,111690.0,111680.0,0.38101064]
[1756823363272,0.36683891,111690.0,111680.0,0.38101064]
[1756823363464,0.18777185,111690.0,111680.0,0.38101064]
[1756823363661,0.36683891,111690.0,111680.0,0.38101064]
[1756823364507,0.18777185,111690.0,111680.0,0.38101064]
[1756823364733,0.18777185,111690.0,111680.0,0.38619064]
[1756823364935,0.36683891,111690.0,111680.0,0.22583064]
[1756823365152,0.36683891,111690.0,111680.0,0.38619064]
[1756823365542,0.36683891,111690.0,111680.0,0.20192755]
[1756823365742,0.36683891,111690.0,111680.0,0.04156755]
[1756823365946,0.18777185,111690.0,111680.0,0.38314064]
[1756823366158,0.18777185,111690.0,111680.0,0.80804997]
[1756823366533,0.18777185,111690.0,111680.0,0.22583064]
[1756823366731,0.18777185,111690.0,111680.0,0.38101064]
[1756823367166,0.36685331,111690.0,111680.0,0.38101064]
[1756823367596,0.18778625,111690.0,111680.0,0.38406064]
[1756823367805,0.18778625,111690.0,111680.0,0.38101064]
[1756823368005,0.18778625,111690.0,111680.0,0.38619064]
[1756823369776,0.18778625,111690.0,111680.0,0.22370064]
[1756823369994,0.18153877,111690.0,111680.0,0.38097064]
[1756823370270,0.18780328,111690.0,111680.0,0.38097064]
[1756823370901,0.18153877,111690.0,111680.0,0.38615064]
[1756823371116,0.18780339,111690.0,111680.0,0.38615064]
[1756823374205,0.18780339,111690.0,111680.0,0.80800997]
[1756823374436,0.18780339,111690.0,111680.0,0.89992596]
[1756823374671,0.17378719,111690.0,111680.0,1.28442915]
[1756823374901,0.17378719,111690.0,111680.0,1.73789649]
[1756823375154,0.17378719,111690.0,111680.0,1.29247279]
[1756823375377,0.17378719,111690.0,111680.0,0.87057346]
[1756823375599,0.17378719,111690.0,111680.0,1.29243279]
[1756823376275,0.17378719,111690.0,111680.0,0.62109919]
[1756823376529,0.17378719,111690.0,111680.0,0.78137919]
[1756823376793,0.00395,111700.0,111690.0,0.54000588]
[1756823377038,0.00395,111700.0,111690.0,1.06749322]
[1756823377039,0.00409058,111700.0,111690.0,1.06749322]
[1756823377488,0.00409058,111700.0,111690.0,0.64563389]
[1756823377724,0.00409058,111700.0,111690.0,1.15940921]
[1756823378006,0.00409058,111700.0,111690.0,0.72959316]
[1756823378239,0.00409058,111700.0,111690.0,0.88987316]
[1756823378481,0.00409058,111700.0,111690.0,1.31173249]
[1756823379176,0.00409058,111700.0,111690.0,1.31773249]
[1756823379401,0.00409058,111700.0,111690.0,0.92744117]
[1756823379855,0.00409058,111700.0,111690.0,0.53489434]
[1756823380569,0.00409058,111700.0,111690.0,0.27755835]
[1756823380570,0.1831416,111700.0,111690.0,0.27755835]
[1756823380799,0.1831416,111700.0,111690.0,0.25390706]
[1756823381048,0.1831416,111700.0,111690.0,0.18506706]
[1756823381288,0.1831416,111700.0,111690.0,0.16624]
[1756823381513,0.19989741,111700.0,111690.0,0.16624]
[1756823381961,0.19989741,111700.0,111690.0,0.16424]
[1756823382183,0.19989741,111700.0,111690.0,0.16024]
[1756823382377,0.19989741,111700.0,111690.0,0.16124]
[1756823382610,0.35116596,111700.0,111690.0,0.16324]
[1756823382869,0.76119596,111700.0,111690.0,0.16324]
[1756823383115,0.76119596,111700.0,111690.0,0.16024]
[1756823383116,0.7018434,111700.0,111690.0,0.16024]
[1756823383569,0.7018434,111700.0,111690.0,0.16124]
[1756823383791,0.6998434,111700.0,111690.0,0.16124]
[1756823384009,0.7028434,111700.0,111690.0,0.16124]
[1756823384227,0.7028434,111700.0,111690.0,0.16024]
[1756823385237,0.6998434,111700.0,111690.0,0.16024]
[1756823385728,0.7018434,111700.0,111690.0,0.16024]
[1756823386497,0.17908309,111680.0,111670.0,0.06884]
[1756823386715,0.28775489,111680.0,111670.0,0.06884]
[1756823386921,0.17909913,111670.0,111660.0,0.07354631]
[1756823387129,0.17911517,111660.0,111650.0,0.46628121]
[1756823387342,0.19587098,111660.0,111650.0,0.46837121]
[1756823387555,0.01675581,111660.0,111650.0,1.05043054]
[1756823387764,0.01675581,111660.0,111650.0,1.20412242]
[1756823387991,0.01675581,111660.0,111650.0,1.22777371]
[1756823388415,0.01675581,111660.0,111650.0,1.22824262]
[1756823388859,0.02303679,111660.0,111650.0,1.22824262]
[1756823389462,0.02303679,111660.0,111650.0,1.23124262]
[1756823390285,0.02303679,111660.0,111650.0,1.22824262]
[1756823390495,0.02303679,111660.0,111650.0,0.80938329]
[1756823391134,0.02303679,111660.0,111650.0,1.23124262]
[1756823391318,0.02303679,111660.0,111650.0,0.80938329]
[1756823391490,0.17909913,111670.0,111660.0,0.17910381]
[1756823391696,0.20212878,111670.0,111660.0,0.18418381]
[1756823391915,0.20212878,111670.0,111660.0,0.00508]
[1756823392119,0.20212878,111670.0,111660.0,0.1602]
[1756823392801,0.20212878,111670.0,111660.0,0.16728]
[1756823393170,0.20212878,111670.0,111660.0,0.16928]
[1756823393321,0.20212878,111670.0,111660.0,0.1642]
[1756823393724,0.20212878,111670.0,111660.0,0.1602]
[1756823393923,0.20212878,111670.0,111660.0,0.1612]
[1756823394539,0.20212878,111670.0,111660.0,0.1602]
[1756823394742,0.17911517,111660.0,111650.0,0.28462891]
[1756823394907,0.20214482,111660.0,111650.0,0.44777891]
[1756823395112,0.20214482,111660.0,111650.0,0.44986891]
[1756823395333,0.02302965,111660.0,111650.0,1.39085945]
[1756823395554,0.02302965,111660.0,111650.0,1.74085914]
[1756823395555,0.01674884,111660.0,111650.0,1.74085914]
[1756823396180,0.01674884,111660.0,111650.0,1.74185914]
[1756823396381,0.01674884,111660.0,111650.0,1.78212325]
[1756823396600,0.01674884,111660.0,111650.0,1.78112325]
[1756823396808,0.01674884,111660.0,111650.0,1.80506207]
[1756823397003,0.01674884,111660.0,111650.0,1.83667008]
[1756823397145,0.01674884,111660.0,111650.0,1.86349888]
[1756823397368,0.01674884,111660.0,111650.0,2.23189087]
[1756823397566,0.01674884,111660.0,111650.0,2.22889087]
[1756823397769,0.19195382,111700.0,111680.0,0.17908309]
[1756823397770,0.17906706,111690.0,111680.0,0.17908309]
[1756823397973,0.20207297,111690.0,111680.0,0.22904]
[1756823398384,0.20207297,111690.0,111680.0,0.06888]
[1756823398647,0.20207297,111690.0,111680.0,0.22904]
[1756823398770,0.29398896,111690.0,111680.0,0.22904]
[1756823399631,0.29398896,111690.0,111680.0,0.23004]
[1756823399849,0.29398896,111690.0,111680.0,0.16116]
[1756823400057,0.29498896,111690.0,111680.0,0.16116]
[1756823400269,0.17909913,111670.0,111660.0,0.06888]
[1756823400504,0.17909913,111670.0,111660.0,0.22904]
[1756823400505,0.19583055,111670.0,111660.0,0.22904]
[1756823400735,0.20210623,111670.0,111660.0,0.22904]
[1756823401160,0.17911517,111660.0,111650.0,0.00046891]
[1756823401366,0.195851,111660.0,111650.0,0.16058891]
[1756823401565,0.29404295,111660.0,111650.0,0.00046891]
[1756823401772,0.29404295,111660.0,111650.0,0.16058891]
[1756823401995,0.34135892,111660.0,111650.0,0.00046891]
[1756823402195,0.74938892,111660.0,111650.0,0.00046891]
[1756823402605,0.93044774,111660.0,111650.0,1e-08]
[1756823402815,0.98044774,111660.0,111650.0,1e-08]
[1756823403013,1.00742813,111660.0,111650.0,1e-08]
[1756823403228,0.95742813,111660.0,111650.0,0.00100001]
[1756823403432,0.95742813,111660.0,111650.0,1e-08]
[1756823403636,0.91007392,111660.0,111650.0,1e-08]
[1756823404041,0.91507392,111660.0,111650.0,1e-08]
[1756823404501,0.17914725,111640.0,111630.0,1.01961701]
[1756823404639,0.29406335,111640.0,111630.0,1.01961701]
[1756823405858,0.29406335,111640.0,111630.0,1.02260701]
[1756823406065,0.28980083,111640.0,111630.0,1.02260701]
[1756823406276,0.29605969,111640.0,111630.0,1.02469701]
[1756823406735,0.28980083,111640.0,111630.0,1.02469701]
[1756823407554,0.30342742,111640.0,111630.0,1.20386031]
[1756823408096,0.30342742,111640.0,111630.0,1.02469701]
[1756823408311,0.30342742,111640.0,111630.0,1.20386031]
[1756823408568,0.21151143,111640.0,111630.0,1.20386031]
[1756823408863,0.19788484,111640.0,111630.0,1.20386031]
[1756823409072,0.19788484,111640.0,111630.0,1.02469701]
[1756823409489,0.23985258,111640.0,111630.0,1.01965701]
[1756823409711,0.24185258,111640.0,111630.0,1.01965701]
[1756823409913,0.21600028,111640.0,111630.0,1.02274701]
[1756823410130,0.30791627,111640.0,111630.0,1.01965701]
[1756823410346,0.30791627,111640.0,111630.0,0.86049701]
[1756823410347,0.64791627,111640.0,111630.0,0.86049701]
[1756823410557,0.71671627,111640.0,111630.0,0.86049701]
[1756823410772,0.82957108,111640.0,111630.0,0.40904481]
[1756823411005,6.10651932,111640.0,111630.0,0.16670349]
[1756823411215,6.10651932,111640.0,111630.0,0.09527194]
[1756823411638,6.10648633,111640.0,111630.0,0.09527194]
[1756823411844,0.51919541,111610.0,111600.0,0.16016]
[1756823412056,0.63408075,111610.0,111600.0,0.16016]
[1756823412714,0.6111114,111610.0,111600.0,0.16325]
[1756823412961,0.63408064,111610.0,111600.0,0.16542]
[1756823413191,0.6111114,111610.0,111600.0,0.16116]
[1756823413623,0.6111114,111610.0,111600.0,0.16642]
[1756823414029,0.63407655,111610.0,111600.0,0.16642]
[1756823414449,0.29407655,111610.0,111600.0,0.34563146]
[1756823414669,0.20216056,111610.0,111600.0,0.34563146]
[1756823414858,0.29407655,111610.0,111600.0,0.00626]
[1756823415137,0.02296515,111610.0,111600.0,0.34763146]
[1756823415397,0.20216056,111610.0,111600.0,0.34763146]
[1756823415876,0.20216056,111610.0,111600.0,0.16842]
[1756823416376,0.02296515,111610.0,111600.0,0.34763146]
[1756823416581,0.20216056,111610.0,111600.0,0.16842]
[1756823416796,0.20216056,111610.0,111600.0,0.34763146]
[1756823417009,0.20216056,111610.0,111600.0,0.16842]
[1756823418072,0.20216056,111610.0,111600.0,0.00826]
[1756823418495,0.20216056,111610.0,111600.0,0.16846]
[1756823420718,0.02296515,111610.0,111600.0,0.00826]
[1756823420926,0.18545598,111610.0,111600.0,0.34767146]
[1756823421173,0.18545598,111610.0,111600.0,0.16846]
[1756823421388,0.0229419,111610.0,111600.0,0.16846]
[1756823421604,0.20213731,111610.0,111600.0,0.16846]
[1756823421823,0.20213731,111610.0,111600.0,0.00826]
[1756823422035,0.20213731,111610.0,111600.0,0.16846]
[1756823422699,0.20213731,111610.0,111600.0,0.34767146]
[1756823422922,0.0229419,111610.0,111600.0,0.34767146]
[1756823423154,0.00626057,111610.0,111600.0,1.0039632]
[1756823423612,0.17916342,111630.0,111620.0,0.17917935]
[1756823423835,0.29403137,111630.0,111620.0,0.40829827]
[1756823424042,0.27734315,111630.0,111620.0,0.23438]
[1756823424406,0.27733775,111630.0,111620.0,0.41355935]
[1756823424608,0.18542176,111630.0,111620.0,0.41355935]
[1756823424776,0.18542269,111630.0,111620.0,0.41355935]
[1756823425207,0.18642269,111630.0,111620.0,0.07418]
[1756823425415,0.18642269,111630.0,111620.0,0.23438]
[1756823426008,0.18542269,111630.0,111620.0,0.23438]
[1756823426228,0.18542269,111630.0,111620.0,0.07418]
[1756823426422,0.20212508,111630.0,111620.0,0.23638]